bitfinex/quotes_ETHUSD_20220105
["timestamp","ask_amount","ask_price","bid_price","bid_amount"]
[1641426008853,48.15,3546.8,3545.8,5.6404]
[1641426008854,0.01214077,3546.5,3545.8,5.6404]
[1641426009382,0.00170527,3546.4,3545.9,0.00113684]
[1641426009779,0.00113685,3546.3,3545.9,0.00113684]
[1641426010279,1.23153655,3546.1,3545.9,0.00113684]
[1641426010881,0.00113685,3546.3,3545.9,0.00113684]
[1641426012829,0.01406386,3546.3,3545.9,0.00113684]
[1641426013626,2.02080942,3546.2,3545.9,0.00113684]
[1641426013827,2.02080942,3546.2,3545.8,3.684e-05]
[1641426013828,48.15,3546.1,3545.8,3.684e-05]
[1641426014027,0.01265082,3546.0,3545.8,3.684e-05]
[1641426014427,48.15,3545.9,3543.9,2.9431064]
[1641426014627,48.45,3545.9,3543.9,2.9431064]
[1641426014832,6.01168385,3546.0,3544.6,1.12952355]
[1641426015028,5.51168385,3546.0,3544.7,0.345]
[1641426015233,5.51168385,3546.0,3544.7,0.35182109]
[1641426015431,1.3937856,3545.4,3544.8,0.00625266]
[1641426023639,2.0991856,3545.4,3544.8,0.00625266]
[1641426024479,1.28984679,3545.1,3544.8,0.00625266]
[1641426024678,1.3937856,3545.4,3544.8,0.00625266]
[1641426025880,0.70536,3545.6,3544.8,0.00625266]
[1641426026083,7.05083685,3546.1,3545.0,16.47]
[1641426026282,3.86423685,3546.1,3545.0,16.47]
[1641426026481,3.86423685,3546.1,3545.2,16.47]
[1641426026482,0.00113685,3546.1,3545.2,16.47]
[1641426026683,0.00113685,3546.1,3545.3,0.345]
[1641426026881,0.00113685,3546.1,3545.3,1.54165358]
[1641426027082,0.00113685,3546.1,3545.9,1.04911122]
[1641426027282,0.00113685,3546.1,3545.9,2.03041122]
[1641426027484,0.00113685,3546.1,3546.0,16.47]
[1641426027685,11.28107913,3547.3,3546.0,16.47]
[1641426027944,6.38085304,3547.3,3546.0,16.47]
[1641426028139,0.0051158,3547.0,3546.0,17.78688129]
[1641426028439,0.00454738,3546.9,3546.0,17.17502]
[1641426028941,0.00397895,3546.8,3546.0,17.17502]
[1641426029342,0.00341053,3546.7,3546.0,17.17502]
[1641426029742,0.00284211,3546.6,3546.0,0.70502]
[1641426030144,0.00227368,3546.5,3546.0,0.70502]
[1641426030546,0.00170526,3546.4,3546.0,0.70502]
[1641426030743,0.00170526,3546.4,3546.1,16.47]
[1641426030941,0.00113684,3546.3,3546.1,16.47]
[1641426031785,0.00113684,3546.3,3546.1,17.1749387]
[1641426031984,0.00113684,3546.3,3546.2,0.345]
[1641426032186,0.00113684,3546.3,3546.2,17.3985]
[1641426034990,0.00113684,3546.3,3546.2,17.35241]
[1641426035654,0.00113684,3546.3,3546.2,35.90241]
[1641426036855,0.00113684,3546.3,3546.2,17.35241]
[1641426038661,0.00113684,3546.3,3546.2,53.60241]
[1641426039481,0.00113684,3546.3,3546.2,17.35241]
[1641426043041,0.00113684,3546.3,3546.1,0.7049387]
[1641426043240,0.00113684,3546.3,3545.8,1.5]
[1641426043642,0.00113684,3546.3,3545.9,0.00113686]
[1641426044239,1.08236353,3546.0,3545.9,0.00113686]
[1641426046442,1.08236353,3546.0,3544.7,0.00795794]
[1641426046443,1.38236353,3546.0,3544.7,0.00795794]
[1641426046892,2.12029639,3545.4,3544.7,0.00795794]
[1641426047088,1.41490639,3545.4,3544.7,0.00795794]
[1641426047489,1.42441451,3545.0,3544.7,0.00795794]
[1641426048493,1.42441451,3545.0,3543.7,4.13167557]
[1641426048494,1.42441451,3545.0,3544.5,0.00909479]
[1641426048693,1.42441451,3545.0,3544.1,0.01136848]
[1641426048896,1.42441451,3545.0,3543.8,0.01307375]
[1641426049297,1.41692299,3544.1,3543.8,0.01307375]
[1641426051140,3.8386,3545.0,3543.8,0.01307375]
[1641426051348,0.71811915,3545.6,3544.0,0.7054]
[1641426051542,0.71811915,3545.6,3544.1,16.47]
[1641426051740,0.71811915,3545.6,3544.1,16.48136848]
[1641426051741,0.70536,3545.5,3544.1,16.48136848]
[1641426051942,7.628,3545.7,3544.5,16.47]
[1641426052140,0.70527,3546.2,3544.5,16.815]
[1641426052341,1.06465653,3545.7,3544.9,1.290304]
[1641426052541,1.06465653,3545.7,3544.6,0.07407535]
[1641426052741,1.06465653,3545.7,3545.0,0.00625267]
[1641426053041,1.06465653,3545.7,3544.7,0.00795794]
[1641426053443,0.70526,3546.2,3544.8,1.75552]
[1641426053644,0.70635684,3546.3,3544.8,1.75552]
[1641426053645,0.00113684,3546.3,3545.5,0.7050701]
[1641426053842,0.00113684,3546.3,3545.6,16.815]
[1641426054090,0.3121661,3546.5,3545.7,92.8]
[1641426054297,6.39375433,3547.5,3545.8,0.35702637]
[1641426054298,6.38085304,3547.5,3545.8,0.35702637]
[1641426054483,6.38085304,3547.5,3546.8,1.36834046]
[1641426054683,6.38085304,3547.5,3546.9,0.345]
[1641426054883,6.38085304,3547.5,3547.2,16.47]
[1641426055083,1.21484753,3547.6,3547.1,1.5]
[1641426055084,1.21484753,3547.6,3547.3,0.345]
[1641426055282,1.21484753,3547.6,3547.4,0.645]
[1641426055487,1.21484753,3547.6,3547.1,1.5]
[1641426055488,0.00682108,3547.5,3547.1,1.5]
[1641426055687,0.00682108,3547.5,3547.1,1.45]
[1641426055886,2.37366511,3547.6,3547.1,1.45]
[1641426055887,0.01267088,3547.3,3547.1,1.45]
[1641426056087,0.01267088,3547.3,3546.5,1.00495]
[1641426056289,0.00511581,3547.2,3546.6,0.3]
[1641426056490,0.00511581,3547.2,3546.7,0.345]
[1641426056692,1.21484753,3547.6,3546.7,0.345]
[1641426056693,0.00454738,3547.1,3546.7,0.345]
[1641426056893,0.00454738,3547.1,3546.8,2.70807335]
[1641426057091,0.00397896,3547.0,3546.8,3.35307335]
[1641426057291,0.00397896,3547.0,3546.9,97.8686914]
[1641426057491,0.7054926,3548.2,3546.9,99.2184594]
[1641426057691,0.7054926,3548.2,3547.3,1.40935]
[1641426057949,0.0096632,3548.0,3547.4,4.38174381]
[1641426058148,0.0096632,3548.0,3547.5,17.47]
[1641426058351,0.00909477,3547.9,3547.6,0.345]
[1641426058750,0.00852635,3547.8,3547.6,0.295]
[1641426059148,0.00795793,3547.7,3547.6,0.295]
[1641426069380,0.00795793,3547.7,3547.6,1.54033859]
[1641426069583,0.00795793,3547.7,3547.6,18.01033859]
[1641426069783,0.00795793,3547.7,3547.6,18.31033859]
[1641426070282,0.7054926,3548.2,3547.7,89.10909]
[1641426070481,0.7054926,3548.2,3548.0,0.7046]
[1641426070682,0.7054926,3548.2,3548.1,16.815]
[1641426071084,0.70833471,3548.2,3548.1,16.815]
[1641426071485,0.70833471,3548.2,3548.1,18.14325517]
[1641426071691,6.38085304,3549.7,3548.7,0.70446]
[1641426071886,6.38085304,3549.7,3548.9,17.87878]
[1641426072086,6.38085304,3549.7,3549.1,77.64488419]
[1641426072289,6.38085304,3549.7,3549.3,1.4086334]
[1641426072492,6.38085304,3549.7,3549.5,1.02012573]
[1641426072493,0.00284212,3549.6,3549.5,1.02012573]
[1641426072691,0.00284212,3549.6,3549.5,2.06945573]
[1641426072943,0.00284212,3549.6,3549.5,0.345]
[1641426073448,14.75284212,3549.6,3549.5,0.345]
[1641426073644,0.00284212,3549.6,3549.5,0.345]
[1641426075744,0.00284212,3549.6,3548.4,0.345]
[1641426075944,0.00284212,3549.6,3547.6,0.12]
[1641426075945,0.01255522,3549.5,3547.9,0.345]
[1641426076144,0.01482892,3549.5,3548.5,0.00341054]
[1641426076344,0.00170527,3549.4,3548.0,0.00625265]
[1641426076585,1.33825867,3549.1,3548.0,0.00625265]
[1641426076788,0.00113685,3549.3,3548.1,0.345]
[1641426077188,3.06854138,3549.6,3548.2,0.70970581]
[1641426077390,3.06854138,3549.6,3548.2,1.05584266]
[1641426077594,0.00113685,3549.5,3548.3,16.47568423]
[1641426077793,0.00113685,3549.5,3549.0,1.02430153]
[1641426077993,0.00170527,3549.6,3549.1,0.345]
[1641426078194,0.00170527,3549.6,3549.1,1.05023685]
[1641426078494,0.00170527,3549.6,3549.2,3.0]
[1641426078694,0.00170527,3549.6,3549.3,0.345]
[1641426078893,0.00170527,3549.6,3549.3,0.195]
[1641426079300,0.00170527,3549.6,3549.4,16.47]
[1641426079495,0.00170527,3549.6,3549.5,0.345]
[1641426082548,0.00278745,3549.7,3549.6,92.4]
[1641426082549,0.00109272,3549.7,3549.6,92.4]
[1641426082756,6.38085304,3551.0,3549.6,92.4]
[1641426082757,5.67655304,3551.0,3550.7,3.8635]
[1641426082953,5.67655304,3551.0,3550.8,0.345]
[1641426083750,0.00081787,3550.9,3550.8,0.345]
[1641426084193,0.00081787,3550.9,3550.7,3.8635]
[1641426084592,34.15682108,3550.8,3550.7,3.8635]
[1641426084794,0.00682108,3550.8,3550.7,3.8635]
[1641426086895,0.30682108,3550.8,3550.7,3.8635]
[1641426087094,0.00682108,3550.8,3550.7,3.8635]
[1641426088935,1.25603297,3551.0,3550.7,3.8635]
[1641426088936,1.21367192,3551.0,3550.7,3.8635]
[1641426090038,1.51367192,3551.0,3550.7,3.8635]
[1641426090441,1.42751712,3550.9,3550.7,3.8635]
[1641426090836,2.13195322,3550.9,3550.7,3.8635]
[1641426091882,0.3,3550.8,3550.7,3.8635]
[1641426093286,3.8635,3550.7,3549.2,0.345]
[1641426093488,0.01251417,3550.2,3549.2,0.345]
[1641426093690,0.70459,3550.1,3549.3,0.00852635]
[1641426093887,0.3,3550.1,3549.3,0.00852635]
[1641426094089,1.409385,3550.0,3548.5,0.01307374]
[1641426094286,2.71477819,3550.0,3548.5,0.01307374]
[1641426094486,1.30539319,3550.0,3548.5,0.01307374]
[1641426094687,1.80539319,3550.0,3548.4,0.01364216]
[1641426094887,0.3,3549.9,3548.2,0.01477901]
[1641426095746,0.3,3549.9,3548.3,1.10268199]
[1641426095944,0.01251417,3550.2,3548.3,1.44768199]
[1641426096145,0.01251417,3550.2,3548.4,0.01364216]
[1641426096344,0.01251417,3550.2,3548.5,16.47]
[1641426096545,3.6838,3550.4,3548.4,0.01364216]
[1641426096746,3.6838,3550.4,3548.6,0.01250531]
[1641426096747,6.37323934,3550.4,3548.6,0.01250531]
[1641426096945,6.37323934,3550.4,3548.7,0.345]
[1641426096946,0.70452,3550.3,3548.7,0.345]
[1641426097146,1.26651916,3549.8,3549.0,1.39273276]
[1641426097346,1.26651916,3549.8,3548.8,0.35636847]
[1641426097550,1.26651916,3549.8,3549.1,0.0096632]
[1641426097749,1.26651916,3549.8,3548.9,0.01080004]
[1641426098649,1.26651916,3549.8,3548.8,1.40037487]
[1641426099090,1.26651916,3549.8,3548.9,0.01080004]
[1641426099898,1.41910594,3550.0,3548.9,0.01080004]
[1641426099899,0.70448,3550.5,3548.9,0.35580004]
[1641426100101,7.8155,3550.7,3549.0,19.18329386]
[1641426100301,3.8635,3550.7,3549.2,16.47]
[1641426100499,3.8635,3550.7,3549.3,0.345]
[1641426100803,3.8635,3550.7,3549.7,2.05540594]
[1641426100804,1.35527208,3550.5,3549.7,2.05540594]
[1641426101002,1.35527208,3550.5,3549.8,0.345]
[1641426101203,3.8635,3550.7,3549.8,0.35068423]
[1641426101403,3.8635,3550.7,3549.9,0.70935581]
[1641426101600,3.8635,3550.7,3550.0,0.345]
[1641426101800,3.8635,3550.7,3550.0,0.34954738]
[1641426102001,3.8635,3550.7,3550.1,0.00397896]
[1641426102200,3.8635,3550.7,3550.2,0.345]
[1641426102600,3.8635,3550.7,3550.3,0.00284211]
[1641426103244,4.91549488,3550.7,3550.3,0.00284211]
[1641426104246,4.88724488,3550.7,3550.3,0.00284211]
[1641426105246,3.83525,3550.7,3550.3,0.00284211]
[1641426105446,3.73525,3550.7,3550.3,0.00284211]
[1641426112540,0.01222738,3550.4,3549.9,0.00511581]
[1641426112741,0.01222738,3550.4,3549.2,0.00909477]
[1641426112742,1.36684344,3549.6,3549.2,0.00909477]
[1641426113140,1.36684344,3549.6,3548.7,0.01193689]
[1641426113743,1.36684344,3549.6,3548.4,0.01364216]
[1641426114389,1.31778472,3549.2,3548.4,0.01364216]
[1641426114589,1.36684344,3549.6,3548.4,16.48364216]
[1641426114790,3.9907,3550.0,3548.4,0.01364216]
[1641426114990,3.9907,3550.0,3548.5,0.01307374]
[1641426115189,3.9907,3550.0,3548.4,0.71818356]
[1641426115391,3.9907,3550.0,3548.5,0.01307374]
[1641426115590,0.70456,3549.9,3548.5,0.01307374]
[1641426115792,0.70456,3549.9,3548.5,0.71762374]
[1641426116295,0.70456,3549.9,3548.6,0.01250531]
[1641426116494,1.11938579,3549.8,3548.6,0.01250531]
[1641426116694,1.11237006,3549.4,3548.6,0.01250531]
[1641426117093,1.11237006,3549.4,3548.6,17.18702531]
[1641426117496,1.11237006,3549.4,3548.7,0.01193689]
[1641426118335,1.11237006,3549.4,3548.8,0.70451]
[1641426118535,1.11938579,3549.8,3548.8,0.70451]
[1641426118735,1.11938579,3549.8,3548.9,0.01080004]
[1641426119636,1.42076083,3549.5,3548.9,0.71529004]
[1641426120035,1.42076083,3549.5,3549.0,0.01023162]
[1641426120837,1.42076083,3549.5,3548.8,0.01136847]
[1641426121243,1.18090663,3548.9,3548.8,0.01136847]
[1641426121692,1.18090663,3548.9,3548.4,0.01364216]
[1641426121895,1.18090663,3548.9,3548.3,0.01421058]
[1641426123897,1.50493613,3548.7,3548.3,0.01421058]
[1641426124400,1.50493613,3548.7,3547.6,3.12]
[1641426124401,1.50493613,3548.7,3547.7,0.01762112]
[1641426124797,1.18090663,3548.9,3547.8,0.0170527]
[1641426124999,1.18090663,3548.9,3547.8,17.1917427]
[1641426125432,1.18090663,3548.9,3547.9,0.01648428]
[1641426125732,1.08090663,3548.9,3547.9,0.01648428]
[1641426126137,1.27578704,3548.3,3547.9,0.01648428]
[1641426126533,1.27578704,3548.3,3547.8,0.0170527]
[1641426126734,1.27578704,3548.3,3547.7,0.01762112]
[1641426129792,48.45,3548.1,3547.6,2.112e-05]
[1641426129991,2.09832771,3547.9,3547.6,2.112e-05]
[1641426130391,44.46272835,3547.7,3547.6,2.112e-05]
[1641426130591,2.11519,3547.9,3547.6,2.112e-05]
[1641426130789,0.70507,3547.8,3547.6,2.112e-05]
[1641426130989,2.820241,3547.9,3547.6,2.112e-05]
[1641426130990,0.70506,3547.9,3547.6,2.112e-05]
[1641426132497,0.70502,3547.8,3547.6,2.112e-05]
[1641426134446,51.53696725,3547.7,3547.6,2.112e-05]
[1641426134651,52.13406725,3547.7,3547.6,2.112e-05]
[1641426134847,52.13406725,3547.7,3545.4,1.4101187]
[1641426134848,59.27156725,3547.7,3545.1,4.7282926]
[1641426135048,0.70532,3546.4,3545.1,4.7282926]
[1641426135250,0.70532,3546.4,3545.4,0.01307374]
[1641426135447,1.33901054,3545.7,3545.4,0.01307374]
[1641426136690,0.70536,3546.1,3545.4,0.01307374]
[1641426136890,1.21503437,3546.3,3545.4,0.01307374]
[1641426137696,1.3223719,3546.1,3545.4,0.01307374]
[1641426137897,3.7231,3546.7,3545.4,0.01307374]
[1641426138296,4.57931,3547.7,3545.4,0.01307374]
[1641426138496,17.5395,3547.6,3545.5,0.345]
[1641426138695,17.5395,3547.6,3545.8,0.01297701]
[1641426138897,13.000096,3547.6,3546.8,1.00346344]
[1641426139095,1.2036,3548.1,3546.8,1.00346344]
[1641426139299,0.00284211,3548.2,3546.9,0.34954739]
[1641426139496,0.00284211,3548.2,3547.1,0.70481]
[1641426139698,0.00227369,3548.1,3547.2,0.345]
[1641426139899,0.00227369,3548.1,3547.2,0.34784212]
[1641426140098,0.00170527,3548.0,3547.3,0.0022737]
[1641426140353,0.00170527,3548.0,3547.4,1.68785053]
[1641426140538,0.00113684,3547.9,3547.4,0.345]
[1641426140739,0.00113684,3547.9,3547.5,0.00113685]
[1641426140937,0.00170527,3548.0,3547.5,0.34613685]
[1641426141139,0.00170527,3548.0,3547.5,0.00113685]
[1641426141339,1.17340374,3548.1,3547.5,0.00113685]
[1641426141340,0.00113684,3547.9,3547.5,0.00113685]
[1641426141638,0.00170527,3548.0,3547.1,0.00341055]
[1641426142035,0.00113684,3547.9,3547.1,0.00341055]
[1641426142445,1.17340374,3548.1,3547.1,0.00341055]
[1641426142446,0.70676557,3548.0,3547.1,0.00341055]
[1641426142641,0.3,3547.9,3546.7,0.00568424]
[1641426142841,0.30113684,3547.9,3546.7,0.00568424]
[1641426143045,0.00113684,3547.9,3546.2,0.00852636]
[1641426143242,0.00113684,3547.9,3546.4,1.10508492]
[1641426143243,0.70505,3547.7,3546.4,1.10508492]
[1641426143442,1.17340374,3548.1,3546.6,69.3]
[1641426143443,0.92454058,3548.1,3546.6,69.3]
[1641426143642,0.92454058,3548.1,3546.6,0.35727478]
[1641426143843,0.92454058,3548.1,3546.7,0.00682108]
[1641426144491,1.41007767,3547.8,3547.0,1.18393402]
[1641426144895,1.41007767,3547.8,3547.1,0.00454739]
[1641426145696,2.71975323,3547.8,3546.7,0.00682108]
[1641426146296,1.1768844,3547.2,3546.7,0.00682108]
[1641426146499,4.30964,3548.1,3546.7,0.00682108]
[1641426146698,0.70494,3548.1,3546.7,0.71172108]
[1641426146898,0.70494,3548.1,3546.7,0.00682108]
[1641426147098,0.70494,3548.1,3546.8,0.00625266]
[1641426147299,12.5558,3548.6,3546.7,0.00682108]
[1641426147300,5.3316,3548.4,3546.7,0.00682108]
[1641426147500,1.10735719,3547.8,3547.0,1.36333987]
[1641426147942,1.10735719,3547.8,3547.1,0.00454739]
[1641426148740,1.10735719,3547.8,3546.7,0.00682108]
[1641426148943,1.10735719,3547.8,3546.7,1.30790205]
[1641426149343,1.10735719,3547.8,3546.8,0.00625266]
[1641426150643,1.10735719,3547.8,3546.7,1.05909709]
[1641426151043,0.00511582,3547.7,3546.7,1.05909709]
[1641426151247,0.00511582,3547.7,3546.7,1.76399709]
[1641426151446,1.10735719,3547.8,3546.7,1.76399709]
[1641426151447,0.00454739,3547.6,3546.7,1.76399709]
[1641426151695,0.00454739,3547.6,3546.9,16.47]
[1641426151890,0.00397897,3547.5,3547.0,0.345]
[1641426152092,0.00397897,3547.5,3547.1,16.47]
[1641426152289,0.00341055,3547.4,3547.2,0.345]
[1641426152493,0.00341055,3547.4,3547.3,108.92]
[1641426152694,0.13819997,3549.1,3547.4,16.47]
[1641426152900,0.13819997,3549.1,3547.9,0.70463]
[1641426153094,0.01136847,3548.8,3548.0,0.345]
[1641426153494,0.01080005,3548.7,3548.0,0.345]
[1641426153896,0.01023163,3548.6,3548.0,0.345]
[1641426154194,0.13819997,3549.1,3548.0,0.345]
[1641426154195,0.0096632,3548.5,3548.0,0.345]
[1641426154498,1.01522778,3548.7,3548.0,0.345]
[1641426154499,0.00909478,3548.4,3548.0,0.345]
[1641426154894,0.00852636,3548.3,3548.0,0.345]
[1641426155342,0.00795793,3548.2,3548.0,0.345]
[1641426155554,2.63613641,3548.1,3546.8,0.345]
[1641426155749,2.64352592,3548.1,3546.8,0.345]
[1641426155948,0.00682109,3548.0,3546.8,0.345]
[1641426156248,0.00625266,3547.9,3546.8,0.345]
[1641426156650,1.2766546,3547.2,3546.8,0.345]
[1641426156849,1.2766546,3547.2,3545.3,9.3652]
[1641426157050,0.00170527,3547.1,3545.4,0.345]
[1641426157252,0.00170527,3547.1,3546.2,0.00341054]
[1641426157451,0.00113685,3547.0,3546.2,0.00341054]
[1641426157651,0.70521,3546.8,3546.2,0.00341054]
[1641426157851,1.10036219,3546.7,3546.2,0.00341054]
[1641426158053,1.22433075,3546.6,3546.2,0.00341054]
[1641426158852,0.7053,3546.5,3546.2,0.00341054]
[1641426159290,1.22433075,3546.6,3546.2,0.00341054]
[1641426159490,2.1154452,3548.6,3546.2,0.00341054]
[1641426159491,0.00170527,3547.1,3546.2,0.00341054]
[1641426159889,0.00113685,3547.0,3546.2,0.00341054]
[1641426160089,0.00113685,3547.0,3545.9,0.70508]
[1641426160289,0.00113685,3547.0,3545.8,0.00568423]
[1641426160290,0.70512,3547.2,3545.8,0.00568423]
[1641426160490,1.17498632,3547.0,3546.0,0.00454738]
[1641426160697,1.17498632,3547.0,3546.3,1.08935411]
[1641426161092,0.00170527,3547.1,3547.0,0.05350649]
[1641426161291,0.00170527,3547.1,3546.4,0.00227369]
[1641426161691,0.00113685,3547.0,3546.4,0.00227369]
[1641426162092,0.70512,3547.2,3546.4,0.00227369]
[1641426162293,1.28933307,3547.1,3546.4,0.00227369]
[1641426162497,1.29103834,3547.1,3546.4,0.00227369]
[1641426162696,0.00113685,3547.0,3546.4,0.00227369]
[1641426163941,0.00113685,3547.0,3545.9,0.00511581]
[1641426164143,0.70629685,3547.0,3545.8,0.00568423]
[1641426164542,1.44973485,3546.5,3545.5,0.0073895]
[1641426164744,1.40158062,3546.2,3545.5,0.0073895]
[1641426166043,1.40158062,3546.2,3545.4,0.00795792]
[1641426166910,1.40158062,3546.2,3545.4,1.42237301]
[1641426167310,1.40158062,3546.2,3545.5,0.0073895]
[1641426167718,0.7052,3546.8,3545.5,0.0073895]
[1641426168717,0.00113685,3547.0,3546.4,1.29439427]
[1641426168918,0.00113685,3547.0,3546.4,2.01859427]
[1641426169119,0.00113685,3547.0,3546.5,0.34670527]
[1641426169617,0.00113685,3547.0,3546.6,0.00113684]
[1641426169818,0.00113685,3547.0,3546.7,1.0499354]
[1641426170017,0.00113685,3547.0,3546.7,1.7548454]
[1641426170218,0.00113685,3547.0,3546.7,3.15940834]
[1641426170446,0.00113685,3547.0,3546.7,1.04991]
[1641426170645,0.00113685,3547.0,3546.7,0.345]
[1641426174900,0.00113685,3547.0,3546.6,0.00113684]
[1641426175399,0.00113685,3547.0,3546.5,0.00170527]
[1641426175800,0.00113685,3547.0,3546.3,0.00284211]
[1641426176803,1.31723098,3546.7,3546.3,0.00284211]
[1641426177201,0.00113685,3547.0,3546.3,0.00284211]
[1641426177603,0.00113685,3547.0,3546.4,0.7050265]
[1641426178051,0.00113685,3547.0,3546.5,0.00170527]
[1641426178450,1.00047014,3546.8,3546.5,0.00170527]
[1641426178651,2.44243201,3546.8,3546.5,0.00170527]
[1641426179054,3.29863201,3546.8,3546.5,0.00170527]
[1641426179256,3.29863201,3546.8,3546.3,0.00284211]
[1641426179453,3.29863201,3546.8,3546.0,0.00454738]
[1641426180052,2.29816187,3546.8,3546.0,0.00454738]
[1641426180252,0.00113685,3547.0,3546.0,0.00454738]
[1641426180655,0.00113685,3547.0,3545.8,0.71080423]
[1641426180953,0.00113685,3547.0,3545.9,0.00511581]
[1641426181155,0.00113685,3547.0,3546.4,1.30029562]
[1641426181600,0.00113685,3547.0,3546.5,0.00170527]
[1641426184702,0.00113685,3547.0,3546.5,1.30298234]
[1641426184901,0.00113685,3547.0,3546.5,0.00170527]
[1641426185102,0.00113685,3547.0,3546.6,0.00113684]
[1641426185351,0.00113685,3547.0,3546.5,0.00170527]
[1641426190496,0.00113685,3547.0,3546.5,1.41173667]
[1641426190897,0.00113685,3547.0,3546.6,0.00113684]
[1641426191098,0.00113685,3547.0,3546.6,1.23913684]
[1641426191300,0.00113685,3547.0,3546.7,22.41494628]
[1641426191503,0.00113685,3547.0,3546.8,0.345]
[1641426191704,0.00113685,3547.0,3546.8,0.645]
[1641426192100,0.00113685,3547.0,3546.8,1.34981]
[1641426192503,0.00113685,3547.0,3546.9,93.86272078]
[1641426192706,1.39531765,3548.1,3546.9,1.75772078]
[1641426192944,3.9159,3548.6,3547.7,0.70477]
[1641426193145,0.00682109,3548.0,3547.8,0.345]
[1641426193347,0.0096632,3548.5,3547.8,0.345]
[1641426193544,0.1504922,3549.1,3547.8,0.345]
[1641426193545,0.00625266,3547.9,3547.8,0.345]
[1641426193749,0.00909478,3548.4,3547.8,0.345]
[1641426194050,6.7719,3549.5,3547.8,0.345]
[1641426194051,1.27468069,3549.2,3548.5,0.70462]
[1641426194451,0.01250532,3549.0,3548.5,0.70462]
[1641426194652,0.01250532,3549.0,3548.3,1.10850353]
[1641426194853,0.0119369,3548.9,3548.6,0.70461]
[1641426195253,0.01136847,3548.8,3548.5,0.70455]
[1641426195459,6.847e-05,3548.8,3548.6,0.345]
[1641426195752,6.37323934,3550.1,3548.7,16.55770777]
[1641426195953,6.37323934,3550.2,3549.4,1.10629919]
[1641426196152,6.37323934,3550.2,3549.7,0.70428]
[1641426196353,6.37323934,3550.2,3549.8,0.345]
[1641426196597,6.37323934,3550.2,3550.1,1.23886317]
[1641426196804,0.49396057,3550.2,3550.1,1.23886317]
[1641426197001,3.73525,3550.7,3550.2,6.86716057]
[1641426197303,7.96707386,3550.8,3550.7,91.9]
[1641426197304,0.33618606,3550.8,3550.7,91.9]
[1641426197506,0.41628736,3552.8,3550.9,16.47]
[1641426197703,9.54583155,3551.3,3551.2,53.96009152]
[1641426197903,0.7054926,3552.4,3551.2,17.4451]
[1641426197904,6.37254803,3551.6,3551.2,17.4451]
[1641426198303,0.00404743,3551.4,3551.2,0.9751]
[1641426198504,0.00404743,3551.4,3551.0,6.0]
[1641426198702,0.00404743,3551.4,3550.3,0.34720522]
[1641426198703,0.00347901,3551.3,3550.3,0.34720522]
[1641426198903,1.31736989,3551.1,3550.3,0.34720522]
[1641426199105,1.31736989,3551.1,3550.4,0.0016368]
[1641426199307,0.00177374,3551.0,3550.4,0.0016368]
[1641426199505,1.17091453,3551.0,3550.4,0.0016368]
[1641426199706,6.17,3550.7,3550.4,0.0016368]
[1641426200343,0.00177374,3551.0,3550.4,0.0016368]
[1641426200750,0.00120532,3550.9,3550.4,0.0016368]
[1641426201149,1.31736989,3551.1,3550.4,0.0016368]
[1641426201150,1.15912855,3550.8,3550.4,0.0016368]
[1641426201549,1.15912855,3550.8,3550.3,0.00220522]
[1641426202551,0.00177374,3551.0,3550.3,0.00220522]
[1641426202851,0.00120532,3550.9,3550.3,0.00220522]
[1641426203250,0.00177374,3551.0,3550.3,0.00220522]
[1641426203652,0.00120532,3550.9,3550.3,0.00220522]
[1641426204695,0.01205922,3550.7,3550.3,0.00220522]
[1641426205095,0.70457,3550.5,3550.2,0.46236579]
[1641426205296,2.19240279,3550.4,3550.2,0.46236579]
[1641426205899,1.07113393,3550.4,3550.2,0.46236579]
[1641426206700,0.00170527,3550.6,3550.2,0.46236579]
[1641426207104,0.00113684,3550.5,3550.2,0.46236579]
[1641426207504,0.00682108,3551.5,3550.2,0.46236579]
[1641426207703,1.18632437,3551.1,3550.2,0.46236579]
[1641426208145,0.00397896,3551.0,3550.2,0.46236579]
[1641426208545,0.00341054,3550.9,3550.2,0.46236579]
[1641426208945,0.00284211,3550.8,3550.2,0.46236579]
[1641426209348,0.00227369,3550.7,3550.2,0.46236579]
[1641426209850,0.00170527,3550.6,3550.2,0.46236579]
[1641426210148,0.00113684,3550.5,3550.2,0.46236579]
[1641426210546,0.00454738,3551.1,3550.2,0.46236579]
[1641426210947,0.00397896,3551.0,3550.2,0.46236579]
[1641426211447,0.00341054,3550.9,3550.3,0.345]
[1641426211708,0.00341054,3550.9,3550.4,1.4081874]
[1641426211906,4e-05,3551.9,3550.4,1.4081874]
[1641426211907,0.00284211,3550.8,3550.5,6.0]
[1641426212308,0.00227369,3550.7,3550.5,6.0]
[1641426212713,0.00170527,3550.6,3550.5,6.0]
[1641426214616,0.00170527,3550.6,3550.2,0.46236579]
[1641426215018,0.00113684,3550.5,3550.2,0.46236579]
[1641426215447,1.25375159,3550.3,3550.2,0.46236579]
[1641426215646,50.15375159,3550.3,3550.2,0.46236579]
[1641426215846,1.25375159,3550.3,3550.2,0.46236579]
[1641426216148,0.00341054,3550.9,3550.2,0.46236579]
[1641426216548,0.00284211,3550.8,3550.2,0.46236579]
[1641426216949,0.00227369,3550.7,3550.5,1.51526003]
[1641426217351,1.18325633,3551.4,3550.5,1.51526003]
[1641426217352,0.00170527,3550.6,3550.5,1.51526003]
[1641426218154,0.00170527,3550.6,3550.4,1.4083303]
[1641426218355,0.00170527,3550.6,3550.2,2.21568469]
[1641426218556,0.00113684,3550.5,3550.2,2.21568469]
[1641426218853,0.00568423,3551.3,3550.2,2.21568469]
[1641426219091,0.00568423,3551.3,3550.6,1.11078232]
[1641426219292,1.18325633,3551.4,3550.6,1.11078232]
[1641426219293,0.00511581,3551.2,3550.6,1.11078232]
[1641426219692,0.00454738,3551.1,3550.6,1.11078232]
[1641426220105,0.00397896,3551.0,3550.6,1.11078232]
[1641426220497,0.00341054,3550.9,3550.6,1.11078232]
[1641426220899,0.00284211,3550.8,3550.6,1.11078232]
[1641426221301,1.18325633,3551.4,3550.6,1.11078232]
[1641426221302,0.00227369,3550.7,3550.6,1.11078232]
[1641426221698,0.00227369,3550.7,3550.6,38.41524189]
[1641426221899,0.00227369,3550.7,3550.6,1.45578232]
[1641426223549,0.00227369,3550.7,3550.6,37.44234948]
[1641426223749,0.00227369,3550.7,3550.6,4.09234948]
[1641426225052,0.00227369,3550.7,3550.6,1.45578232]
[1641426225553,0.00227369,3550.7,3550.6,4.07099808]
[1641426225753,0.00227369,3550.7,3550.6,4.09243459]
[1641426226252,0.00227369,3550.7,3550.6,1.45578232]
[1641426226455,0.00227369,3550.7,3550.6,4.06636627]